Cogmind - Beta 14 @@@ ROGUE MODE // 2024.12.05 @ 18:15:19 Player: Tereza Result: Destroyed by G-47 Trooper with Particle Gun Performance ------------- Evolutions (0) 0 Regions Visited (2) 400 Robots Destroyed (21) 105 Value Destroyed (481) 481 Prototype IDs (5) 100 Alien Tech Used (0) 0 Bonus (-7) -7 TOTAL SCORE: 1079 Bonus ------- Friendly Fire -7 Cogmind --------- Core Integrity 0/250 Matter 264/300 Energy 218/250 System Corruption 1% Temperature Cool (53) Movement Treading (240) Ox1 Location -10/Mines Parts ------- > --- POWER (1) -------- Ion Engine > --- PROPULSION (2) --- Light Treads Light Treads > --- UTILITY (2) ------ High-capacity Storage Unit Medium Armor Plating > --- WEAPON (2) ------- Assault Rifle Light Assault Rifle > --- INVENTORY (20) --- Ion Engine Light Nuclear Core Light Nuclear Core Light Angular Momentum Engine Light Treads Wheel Compact Wheel Improved Heat Sink Medium Matter Pod (100) Terrain Scan Processor Seismic Detector Medium Armor Plating Hacking Suite Spread Laser Spread Laser Beam Cannon Light Assault Rifle Mining Laser Mining Laser Makeshift Sword Peak State ------------ > --- POWER ------------ Ion Engine > --- PROPULSION ------- Light Treads Light Treads > --- UTILITY ---------- High-capacity Storage Unit Medium Armor Plating > --- WEAPON ----------- Light Assault Rifle Light Assault Rifle > --- INVENTORY -------- Ion Engine Light Nuclear Core Light Treads Light Treads Light Treads Light Treads Compact Wheel Improved Heat Sink Medium Matter Pod Seismic Detector Medium Armor Plating Medium Armor Plating Hacking Suite Particle Gun Spread Laser Beam Cannon Assault Rifle Light Assault Rifle Mining Laser Mining Laser [Rating: 11] Favorites ----------- Power Ion Engine Engine Ion Engine Propulsion Light Treads Treads Light Treads Utility High-capacity Storage Unit Device Improved Heat Sink Storage High-capacity Storage Unit Protection Medium Armor Plating Weapon Light Assault Rifle Energy Gun Spread Laser Energy Cannon Beam Cannon Ballistic Gun Light Assault Rifle Build | -11 -10 -10 ------- Run | Yrd Mat Min Slots Evolved . | . . . Power . | . . . Propulsion . | . . . Utility . | . . . Weapon . | . . . Parts Attached 19 | 6 4 9 Power 2 | 1 1 . Engine 2 | 1 1 . Core . | . . . Reactor . | . . . Propulsion 5 | 2 . 3 Treads 5 | 2 . 3 Leg . | . . . Wheel . | . . . Hover . | . . . Flight . | . . . Utility 7 | 1 3 3 Device 1 | . . 1 Storage 2 | 1 1 . Processor . | . . . Hackware . | . . . Protection 4 | . 2 2 Artifact . | . . . Weapon 5 | 2 . 3 Energy Gun 1 | . . 1 Energy Cannon 1 | . . 1 Ballistic Gun 3 | 2 . 1 Ballistic Cannon . | . . . Launcher . | . . . Special Weapon . | . . . Impact Weapon . | . . . Slashing Weapon . | . . . Piercing Weapon . | . . . Special Melee Weapon . | . . . Unidentified Prototypes . | . . . Parts Lost 6 | . 1 5 Power 1 | . 1 . Propulsion 3 | . . 3 Utility 1 | . . 1 Weapon 1 | . . 1 Highest Loss Streak 3 | . 1 3 To Critical Strikes . | . . . Average Slot Usage (%) 96 | . 95 99 Engine 13 | . 13 14 Treads 27 | . 28 27 Storage 14 | . 14 14 Protection 11 | . 9 13 Ballistic Gun 27 | . 28 27 Peak Build Rating 11 | 6 11 11 Average Rating 9 | 4 9 10 On Entrance 5 | . 6 11 Naked Turns . | . . . Heaviest Build 56 | 10 54 56 Greatest Support 40 | 40 40 40 Greatest Overweight (x) 2 | 1 1 2 Average Overweight (x) . | . . 1 Largest Inventory Capacity 20 | 8 20 20 Average Capacity 19 | 7 19 20 Most Carried 20 | 6 20 20 Average Carried 18 | 4 17 19 Final Capacity 20 | 8 20 20 Final Carried 20 | 6 20 20 Class Distribution -------------------- 100% | Mutant Dominant Class ---------------- Mutant | -10/Materials Mutant | -10/Mines Resources | -11 -10 -10 ----------- Run | Yrd Mat Min Matter Collected 734 | 260 266 208 Remotely . | . . . Salvage Created 735 | . 543 192 Parts 48 | . 40 8 Haulers Intercepted 2 | . 2 . Recyclers Shooed 2 | . 2 . Parts Field Recycled . | . . . Retrieved Matter . | . . . Parts Self-Destructed . | . . . Prevented . | . . . Kills | -11 -10 -10 ------- Run | Yrd Mat Min Combat Hostiles Destroyed 25 | . 15 10 Guns 25 | . 15 10 Classes Destroyed 6 | . 4 2 Worker 1 | . . 1 Hauler 2 | . 2 . Operator 1 | . 1 . Swarmer 6 | . 6 . Grunt 11 | . 9 2 Assembled 8 | . . 8 Best Kill Streak 4 | . 4 4 Combat Bots Only 4 | . 4 4 Max Kills in Single Turn 1 | . 1 1 Gunslinging . | . . . Exploded . | . . . Melee . | . . . Uniques/NPCs Destroyed . | . . . Combat | -11 -10 -10 -------- Run | Yrd Mat Min Hostile Shots Fired 140 | . 75 65 Missed 34 | . 23 11 Damage Taken 1400 | . 566 834 Core 256 | . 132 124 Absorbed by Shields . | . . . Redirected to Shielding 16 | . 16 . Core Remaining (%) 100 | 100 . . Volleys Fired 125 | . 68 57 Largest 2 | . 2 2 Hottest 85 | . 40 85 Shots Fired 246 | . 137 109 Gun 242 | . 137 105 Cannon 4 | . . 4 Launcher . | . . . Special . | . . . Kinetic 238 | . 137 101 Thermal 8 | . . 8 Explosive . | . . . Electromagnetic . | . . . Robot Hit Streak 11 | . 11 6 Robot Miss Streak 6 | . 6 6 Penetration Max . | . . . Secondary Targets 1 | . 1 . Max Gunslinging Chain 1 | . 1 . Shots Hit Robots 145 | . 82 63 Core Hits 71 | . 39 32 Critical Kills . | . . . Critical Parts Destroyed 1 | . 1 . Critical Strikes 1 | . 1 . Destroy 1 | . 1 . Melee Attacks . | . . . Impact . | . . . Slashing . | . . . Piercing . | . . . Sneak Attacks . | . . . Combat Hostiles . | . . . Follow-up Attacks . | . . . Damage Inflicted 1336 | . 698 638 Guns 1301 | . 698 603 Cannons 35 | . . 35 Explosions . | . . . Melee . | . . . Ramming . | . . . Kinetic 1256 | . 698 558 Thermal 80 | . . 80 Explosive . | . . . Electromagnetic . | . . . Impact . | . . . Slashing . | . . . Piercing . | . . . Highest Corruption 1 | . 1 1 Average Corruption 1 | . 1 1 Corruption Purged . | . . . Corruption Blocked . | . . . Effects 14 | . 5 9 Message Errors 5 | . 3 2 Matter Fused 2 | . 1 1 Heat Flow Errors 1 | . . 1 Energy Discharges 2 | . . 2 Data Loss (major) 1 | . . 1 Misfires 2 | . 1 1 Weapon Failures 1 | . . 1 Overload Shots . | . . . Overflow Damage . | . . . Projectiles . | . . . Explosions . | . . . Melee . | . . . Knockbacks . | . . . Impact . | . . . Kinetic . | . . . Secondary . | . . . Self-Inflicted Damage . | . . . Shots . | . . . Rammed . | . . . Targets Rammed . | . . . Kicked . | . . . Crushed . | . . . Highest Temperature 310 | . 36 310 Average Temperature 69 | . 9 97 Received Heat Transfer 933 | . 252 681 Effects 4 | . . 4 Interference 4 | . . 4 Siege Activations . | . . . Robots Corrupted . | . . . Combat Hostiles . | . . . Parts Fried . | . . . Impact Corruptions . | . . . Robots Melted . | . . . Combat Hostiles . | . . . Parts Melted . | . . . Heat Transferred 129 | . . 129 Parts Sabotaged . | . . . Parts Stolen . | . . . Parts Stripped . | . . . Power Chain Reactions . | . . . Alert | -11 -10 -10 ------- Run | Yrd Mat Min Peak Influence 295 | . 295 41 Initial 21 | . . 21 Average 84 | . 126 18 Maximum Alert Level 1 | . 1 . Low Security (%) 90 | 100 83 100 Level 1 9 | . 16 . Level 2 . | . . . Level 3 . | . . . Level 4 . | . . . Level 5 . | . . . High Security . | . . . Max Security . | . . . Squads Dispatched 2 | . 2 . Investigation 1 | . 1 . Extermination . | . . . Reinforcement 1 | . 1 . Assault . | . . . Garrison . | . . . Intercept . | . . . Searches Triggered . | . . . Construction Impeded . | . . . Haulers Reinforced . | . . . Active Scanning Responses . | . . . Cargo Convoy Interrupts . | . . . Stealth | -11 -10 -10 --------- Run | Yrd Mat Min Distress Signals 3 | . 2 1 Communications Jammed . | . . . Distress Signals . | . . . Times Spotted 45 | . 30 15 Peak Tracking Total 4 | . 4 4 Tactical Retreats 4 | . 3 1 Traps | -11 -10 -10 ------- Run | Yrd Mat Min Traps Triggered 2 | . 2 . Indirectly . | . . . Trap Hack Attempts . | . . . Triggered . | . . . Disarmed . | . . . Reprogrammed . | . . . Reused . | . . . Traps Extracted . | . . . Installed . | . . . Triggered . | . . . Machines | -11 -10 -10 ---------- Run | Yrd Mat Min Machines Disabled . | . . . Max in Single Turn . | . . . Machines Repaired . | . . . Machines Dismantled . | . . . Machines Sabotaged . | . . . Overloaded Fab Kills . | . . . Hacking | -11 -10 -10 --------- Run | Yrd Mat Min Machines Accessed 5 | . 5 . Terminals 5 | . 5 . Fabricators . | . . . Repair Stations . | . . . Recycling Units . | . . . Scanalyzers . | . . . Garrison Access . | . . . Total Hacks 17 | . 17 . Successful 12 | . 12 . Failed 5 | . 5 . Catastrophic 1 | . 1 . Database Lockouts . | . . . Manual 7 | . 7 . Terminals 17 | . 17 . Fabricators . | . . . Repair Stations . | . . . Recycling Units . | . . . Scanalyzers . | . . . Garrison Access . | . . . Terminal Hacks 12 | . 12 . Robot Analysis 5 | . 5 . Prototype ID Bank 3 | . 3 . Alert Level 1 | . 1 . Locate Traps 1 | . 1 . Dispatch Records 1 | . 1 . Transport Status 1 | . 1 . Fabricator Hacks . | . . . Repair Station Hacks . | . . . Recycling Unit Hacks . | . . . Scanalyzer . | . . . Garrison Access Hacks . | . . . Unauthorized Hacks . | . . . Terminals . | . . . Fabricators . | . . . Repair Stations . | . . . Recycling Units . | . . . Scanalyzers . | . . . Garrison Access . | . . . Data Cores Recovered . | . . . Used . | . . . Hacking Detections 4 | . 4 . Full Trace Events 2 | . 2 . Feedback Events . | . . . Feedback Blocked . | . . . Robot Schematics Acquired . | . . . Robots Built . | . . . Authchips . | . . . Time . | . . . Total Robot Build Rating . | . . . Part Schematics Acquired . | . . . Parts Built . | . . . Authchips . | . . . Time . | . . . Total Part Build Rating . | . . . Parts Repaired . | . . . Time . | . . . Parts Recycled . | . . . Recycled Matter . | . . . Retrieved Matter . | . . . Retrieved Components . | . . . Parts Scanalyzed . | . . . Part Schematics Acquired . | . . . Parts Damaged . | . . . Bothacking | -11 -10 -10 ------------ Run | Yrd Mat Min Used RIF Installer . | . . . Robots Hacked . | . . . Non-combat . | . . . Combat . | . . . Robot Hacks Applied . | . . . Relay Couplers Released . | . . . Fabnet Peak Effective % . | . . . Robots Rewired . | . . . Allies Hacked . | . . . Hacks Repelled . | . . . Allies | -11 -10 -10 -------- Run | Yrd Mat Min Total Allies 2 | . . 2 Largest Group 2 | . . 2 Highest-Rated Group 42 | . . 42 Highest-Rated Ally 31 | . . 31 Total Orders . | . . . Ally Attacks 8 | . . 8 Total Damage 130 | . . 130 Kills 2 | . . 2 Allies Corrupted . | . . . Allies Melted . | . . . Intel | -11 -10 -10 ------- Run | Yrd Mat Min Robot Analysis Total 5 | . 5 . Derelict Logs Recovered 2 | . . 2 Drone Launches . | . . . Drone Recoveries . | . . . Exploration | -11 -10 -10 ------------- Run | Yrd Mat Min Turns Passed 2929 | 69 1799 1061 Spaces Moved 996 | 38 671 287 Core 8 | 8 . . Treads 988 | 30 671 287 Legs . | . . . Wheels . | . . . Hover . | . . . Flight . | . . . Fastest Speed 50 | 50 160 240 Average Speed 231 | 144 231 240 Slowest Speed 320 | 160 240 320 Overloaded Moves . | . . . Propulsion Burnouts . | . . . Robots Hopped . | . . . Cave-ins Triggered . | . . . Exploration Rate (%) 50 | 3 98 51 Regions Visited 2 Branch Regions 1 Pre-discovered Areas 1 | . . 1 Known Exits Taken . | . . . Unknown Exits Taken 2 | 1 1 . Scrap Searched . | . . . Spaces Dug . | . . . Terrain Destroyed . | . . . Melee . | . . . Projectile . | . . . AOE . | . . . Terrain Rammed . | . . . Walls Destroyed . | . . . Machines Disabled . | . . . Actions | -11 -10 -10 --------- Run | Yrd Mat Min Total 1425 | 49 813 563 Wait 237 | . 34 203 Move 994 | 37 670 287 Hop . | . . . Pick Up 37 | 6 25 6 Fast Attach 8 | 6 2 . Attach 7 | . 2 5 Detach 1 | . 1 . Swap 4 | . . 4 Drop 12 | . 11 1 Fire 125 | . 68 57 Melee . | . . . Ram . | . . . Kick . | . . . Crush . | . . . Escape Stasis . | . . . Rewire . | . . . Trap . | . . . Miscellaneous . | . . . Route ------- -11/Scrapyard -10/Materials (discovered 3 exits: *Mat x2 / [*Min]) -10/Mines (discovered 3 exits: *Mat x2 / [*Sub]) History --------- Turn | Location | Event 34 | -11/Scrapyard | Discovered new exit (range 15) 70 | -11/Scrapyard | Entered Materials 148 | -10/Materials | Discovered new exit (range 15) 306 | -10/Materials | Build established: Mutant 870 | -10/Materials | Discovered new exit (range 8) 1008 | -10/Materials | Discovered new exit (range 8) 1287 | -10/Materials | Core integrity fell below 50% 1869 | -10/Materials | Entered Mines 2111 | -10/Mines | Discovered new exit (range 3) 2271 | -10/Mines | Assembled infested the area 2276 | -10/Mines | Assisted by a Guerilla fighting off Assembled 2416 | -10/Mines | Lost 3 parts (2n1u) 2438 | -10/Mines | Core integrity fell below 20% 2648 | -10/Mines | A weapon hastily lodged in a ceiling crevice suddenly fell to the ground 2728 | -10/Mines | Identified exit to Materials 2788 | -10/Mines | Discovered exit to Materials (range 6) 2930 | -10/Mines | Destroyed by G-47 Trooper with Particle Gun Last Messages --------------- 02629_ F0P8ZC%BDTC >:I:%KLU 02648_ A Mak. Sword has been hastily shoved under some rubble with a note attached: "Here lies the sword of MA-1KR the Great. I think." 02653_ Acquired Mak. Sword. 02717_ System corrupted: Energy discharge (-67). 02728_ Acquired derelict log, extracted data. Loading 1 Mines exit... 02744_ K-01 Serf collects debris. 02761_ G-34 Mercenary destroyed. 02762_ K-01 Serf collects debris. 02788_ EXIT=FOUND: MATERIALS 02831_ Acquired derelict log, extracted data. World map updated: -9/Materials. 02847_ System corrupted: Substantial component data lost. 02905_ GK-XS2(z) destroyed. 02905_ K-01 Serf collects debris. 02920_ K-01 Serf destroyed. 02926_ System corrupted: Energy discharge (-70). Map ----- +----------------------------------------------------+ | % #??????# #??????????? | | ##??????## ##??????????? | | # #####????????#### #####???????????? | | ?# ????????????????# #???????????????? | | #??#????????????????## #???????????????? | | ???????????????????## #???????????????? | | ???????????????????# ##??????????????? | | ??????????????????## ##?????????????? | | ?????????????###?## = ##????????????? | | ????????###### ## !% #????????????? | | ???????## #????????????? | | ???????# #????????????? | | ????????# ### ##???????????? | | ??????????????## ## #???????????? | | ???????????????###### #???????????? | | ?????#??????????????## ##???????????? | | ?????? ??????????????# #????????????? | | ??????? ?????????????## ##????????????? | | ???????# ???????####### ##?????????????? | | ???????# ?????## ## #??????????????? | | ???????# ###### < #%g#??????????????? | | ???????# ## ==!##?????###?????? | | ???????# ### % ##??## ##????? | | ???????##### ## ##?## #### #????? | | ???????????# ####???## #????? | | ???????????# ######### @ ##????? | | ???????????# ## ##?????? | | ???????????# #### ##??????? | | ???????????############ ##??####???????? | | ??????????????????????####??????????????? | | ????????????????????????????????????????? | | ????????????????????????????????????????? | | | | | | | | | | | | | | | | | | | | | | | | | | | | | | | | | | | | | +----------------------------------------------------+ Best States ------------- Heat Dissipation 39 Energy Generation 10 Energy Capacity 250 Matter Stores 300 Matter Capacity 300 Sight Range 16 Terrain Scan Density 10 Armor Coverage 225 Propulsion Shielding 33 Evasion (%) 40 Recoil Reduction 2 Item Schematics ----------------- None Robot Schematics ------------------ None Fabricated ------------ Nothing Alien Tech Used ----------------- None Achievements -------------- None Challenges ------------ None Game ------ Seed WaveScanLance Manual? 0 Play Time 00:15:13 Cumulative 133.7 hours Start 2024.12.05 @ 18:04:14 End 2024.12.05 @ 18:15:19 Sessions 1 Manual Loads 0 Difficulty Rogue Special Mode None Game No. 162 Rogue 162 Adventurer 0 Explorer 0 Win Type - Total 2 Types 2/0/0/0/0/0/0/0/0 Lore% 66 Gallery% 57 Achievement% 48 Wizard Run 0 Options --------- Layout 1 ASCII 0 Keyboard 1 Movement Numpad Keybinds 0 Fullscreen 1 Font 24/Smallcaps Map View 50x35 Zoom Use 0% Tactical HUD 1 Map Filters NONE Filters NONE Steam 1 RUN: 314e3c2b-4453-4901-8f9b-4fe20c83b599